Workbook

Sheet MÅL
B1: =TODAY() -> 2017-05-24 | C1: MÅL | J1: Øvelse | K1: Kost
B2: STARTDATO | C2: KOST- OG TRÆNINGSJOURNAL
B3: =StartDato+121 -> 2017-09-22 | C3: KOSTANALYSE
B5: SLUTDATO
B6: 100.00
B7: STARTVÆGT
B8: 80.00 | C8: TRÆNINGSANALYSE
B10: SLUTVÆGT
B11: =StartVægt-SlutVægt -> 20
B12: MÅL FOR VÆGTTAB
B13: =SlutDato-StartDato -> 121
B14: DAGE TIL AT TABE
B15: =MålVægt/B13 -> 0.17
B16: TAB PR. DAG

Sheet KOST
B1: KOST | G1: Mål | H1: Øvelse
B2: =Undertitel -> KOST- OG TRÆNINGSJOURNAL
B3: DATO | C3: TID | D3: BESKRIVELSE | E3: KALORIER | F3: KULHYDRATER | G3: PROTEIN | H3: FEDT | I3: BEMÆRKNINGER
B4: =StartDato -> 2017-05-24 | C4: 07:00:00 | D4: Kaffe | E4: 1 | F4: 0 | G4: 0 | H4: 0 | I4: Morgenkaffe
B5: =StartDato -> 2017-05-24 | C5: 08:00:00 | D5: Bagel | E5: 10 | F5: 10 | G5: 2 | H5: 10 | I5: Let morgenmad
B6: =StartDato -> 2017-05-24 | C6: 12:00:00 | D6: Frokost | E6: 283 | F6: 46 | G6: 18 | H6: 4 | I6: Kalkunsandwich
B7: =StartDato -> 2017-05-24 | C7: 19:00:00 | D7: Aftensmad | E7: 500 | F7: 42 | G7: 35 | H7: 25 | I7: Kasserolle med kartoffelkugler
B8: =StartDato+1 -> 2017-05-25 | C8: 07:00:00 | D8: Kaffe | E8: 1 | F8: 0 | G8: 0 | H8: 0 | I8: Morgenkaffe
B9: =StartDato+1 -> 2017-05-25 | C9: 08:00:00 | D9: Toast | E9: 10 | F9: 10 | G9: 2 | H9: 10 | I9: Let morgenmad
B10: =StartDato+1 -> 2017-05-25 | C10: 12:00:00 | D10: Frokost | E10: 189 | F10: 26 | G10: 3 | H10: 8 | I10: Sandwich
B11: =StartDato+1 -> 2017-05-25 | C11: 19:00:00 | D11: Aftensmad | E11: 477 | F11: 62 | G11: 14 | H11: 21 | I11: Aftensmad
B12: =StartDato+2 -> 2017-05-26 | C12: 07:00:00 | D12: Kaffe | E12: 1 | F12: 0 | G12: 0 | H12: 0 | I12: Morgenkaffe
B13: =StartDato+2 -> 2017-05-26 | C13: 08:00:00 | D13: Bagel | E13: 245 | F13: 48 | G13: 10 | H13: 2 | I13: Let morgenmad
B14: =StartDato+2 -> 2017-05-26 | C14: 12:00:00 | D14: Frokost | E14: 247 | F14: 11 | G14: 43 | H14: 5 | I14: Salat
B15: =StartDato+2 -> 2017-05-26 | C15: 19:00:00 | D15: Aftensmad | E15: 456 | F15: 64 | G15: 32 | H15: 22 | I15: Aftensmad
B16: =StartDato+3 -> 2017-05-27 | C16: 07:00:00 | D16: Toast | E16: 10 | F16: 10 | G16: 2 | H16: 10 | I16: Let morgenmad
B17: =StartDato+3 -> 2017-05-27 | C17: 10:00:00 | D17: Kaffe | E17: 135 | F17: 12 | G17: 9 | H17: 6 | I17: Latte
B18: =StartDato+3 -> 2017-05-27 | C18: 12:15:00 | D18: Frokost | E18: 184 | F18: 7 | G18: 5 | H18: 15 | I18: Salat
B19: =StartDato+5 -> 2017-05-29 | C19: 19:00:00 | D19: Aftensmad | E19: 477 | F19: 62 | G19: 14 | H19: 21 | I19: Aftensmad

Sheet TRÆNING
B1: TRÆNING | F1: Kost | G1: Mål
B2: =Undertitel -> KOST- OG TRÆNINGSJOURNAL
B3: DATO | C3: VARIGHED (MIN) | D3: KALORIER FORBRÆNDT | E3: BEMÆRKNINGER
B4: =StartDato+4 -> 2017-05-28 | C4: 30 | D4: 120 | E4: Løbebåndstræning
B5: =B4+1 -> 2017-05-29 | C5: 60 | D5: 180 | E5: Let aerobicstræning
B6: =B5+1 -> 2017-05-30 | C6: 60 | D6: 350 | E6: Ekstrem træning
B7: 2017-05-31 | C7: 30 | D7: 150 | E7: Løbebåndstræning
B8: 2017-06-01 | C8: 25 | D8: 125 | E8: Løb
B9: 2017-06-02 | C9: 20 | D9: 285 | E9: Løbebåndstræning
B10: 2017-06-03 | C10: 40 | D10: 205 | E10: Løb
B11: 2017-06-04 | C11: 30 | D11: 335 | E11: Løb
B12: 2017-06-05 | C12: 40 | D12: 175 | E12: Løb
B13: 2017-06-06 | C13: 45 | D13: 325 | E13: Løbebåndstræning
B14: 2017-06-07 | C14: 40 | D14: 270 | E14: Løb
B15: 2017-06-08 | C15: 20 | D15: 295 | E15: Løbebåndstræning
B16: 2017-06-09 | C16: 45 | D16: 350 | E16: Løb
B17: 2017-06-10 | C17: 35 | D17: 320 | E17: Løb
B18: 2017-06-11 | C18: 40 | D18: 290 | E18: Løb
B19: =B18+1 -> 2017-06-12 | C19: 25 | D19: 265 | E19: Løbebåndstræning
B20: 2017-06-13 | C20: 20 | D20: 195 | E20: Løb

Sheet Diagramberegninger (hidden)
B2: KOSTANALYSE DIAGRAMDATA
B4: Første række | C4: =ROW(Kost[[#Headers],[DATO]])+1 -> 4 | D4: DATO | E4: DAG | F4: FEDT | G4: PROTEIN | H4: KULHYDRATER | I4: KALORIER | J4: Num
B5: Sidste kostpost | C5: =MATCH(9.99E+307,Kost[DATO])+KostRækkeStart-1 -> 19 | D5: =IFERROR(IF(INDEX(Kost[],KostVarighedSlutning-KostRækkeStart-J5,1)<>"",INDEX(Kost[],KostVarighedSlutning-KostRækkeStart-J5,1),""),"") -> 2017-05-24 | E5: =UPPER(TEXT(D5,"DDD")) -> ON | F5: =IFERROR((IF(INDEX(Kost[],KostVarighedSlutning-KostRækkeStart-J5,1)<>"",INDEX(Kost[],KostVarighedSlutning-KostRækkeStart-J5,7),NA())),NA()) -> 3.5 | G5: =IFERROR((IF(INDEX(Kost[],KostVarighedSlutning-KostRækkeStart-J5,1)<>"",INDEX(Kost[],KostVarighedSlutning-KostRækkeStart-J5,6),NA())),NA()) -> 18 | H5: =IFERROR((IF(INDEX(Kost[],KostVarighedSlutning-KostRækkeStart-J5,1)<>"",INDEX(Kost[],KostVarighedSlutning-KostRækkeStart-J5,5),NA())),NA()) -> 46 | I5: =IFERROR((IF(INDEX(Kost[],KostVarighedSlutning-KostRækkeStart-J5,1)<>"",INDEX(Kost[],KostVarighedSlutning-KostRækkeStart-J5,4),NA())),NA()) -> 283 | J5: 12
D6: =IFERROR(IF(INDEX(Kost[],KostVarighedSlutning-KostRækkeStart-J6,1)<>"",INDEX(Kost[],KostVarighedSlutning-KostRækkeStart-J6,1),""),"") -> 2017-05-24 | E6: ON | F6: =IFERROR((IF(INDEX(Kost[],KostVarighedSlutning-KostRækkeStart-J6,1)<>"",INDEX(Kost[],KostVarighedSlutning-KostRækkeStart-J6,7),NA())),NA()) -> 25 | G6: =IFERROR((IF(INDEX(Kost[],KostVarighedSlutning-KostRækkeStart-J6,1)<>"",INDEX(Kost[],KostVarighedSlutning-KostRækkeStart-J6,6),NA())),NA()) -> 35 | H6: =IFERROR((IF(INDEX(Kost[],KostVarighedSlutning-KostRækkeStart-J6,1)<>"",INDEX(Kost[],KostVarighedSlutning-KostRækkeStart-J6,5),NA())),NA()) -> 42 | I6: =IFERROR((IF(INDEX(Kost[],KostVarighedSlutning-KostRækkeStart-J6,1)<>"",INDEX(Kost[],KostVarighedSlutning-KostRækkeStart-J6,4),NA())),NA()) -> 500 | J6: 11
D7: =IFERROR(IF(INDEX(Kost[],KostVarighedSlutning-KostRækkeStart-J7,1)<>"",INDEX(Kost[],KostVarighedSlutning-KostRækkeStart-J7,1),""),"") -> 2017-05-25 | E7: TO | F7: =IFERROR((IF(INDEX(Kost[],KostVarighedSlutning-KostRækkeStart-J7,1)<>"",INDEX(Kost[],KostVarighedSlutning-KostRækkeStart-J7,7),NA())),NA()) -> 0 | G7: =IFERROR((IF(INDEX(Kost[],KostVarighedSlutning-KostRækkeStart-J7,1)<>"",INDEX(Kost[],KostVarighedSlutning-KostRækkeStart-J7,6),NA())),NA()) -> 0 | H7: =IFERROR((IF(INDEX(Kost[],KostVarighedSlutning-KostRækkeStart-J7,1)<>"",INDEX(Kost[],KostVarighedSlutning-KostRækkeStart-J7,5),NA())),NA()) -> 0 | I7: =IFERROR((IF(INDEX(Kost[],KostVarighedSlutning-KostRækkeStart-J7,1)<>"",INDEX(Kost[],KostVarighedSlutning-KostRækkeStart-J7,4),NA())),NA()) -> 1 | J7: 10
D8: =IFERROR(IF(INDEX(Kost[],KostVarighedSlutning-KostRækkeStart-J8,1)<>"",INDEX(Kost[],KostVarighedSlutning-KostRækkeStart-J8,1),""),"") -> 2017-05-25 | E8: TO | F8: =IFERROR((IF(INDEX(Kost[],KostVarighedSlutning-KostRækkeStart-J8,1)<>"",INDEX(Kost[],KostVarighedSlutning-KostRækkeStart-J8,7),NA())),NA()) -> 10 | G8: =IFERROR((IF(INDEX(Kost[],KostVarighedSlutning-KostRækkeStart-J8,1)<>"",INDEX(Kost[],KostVarighedSlutning-KostRækkeStart-J8,6),NA())),NA()) -> 2 | H8: =IFERROR((IF(INDEX(Kost[],KostVarighedSlutning-KostRækkeStart-J8,1)<>"",INDEX(Kost[],KostVarighedSlutning-KostRækkeStart-J8,5),NA())),NA()) -> 10 | I8: =IFERROR((IF(INDEX(Kost[],KostVarighedSlutning-KostRækkeStart-J8,1)<>"",INDEX(Kost[],KostVarighedSlutning-KostRækkeStart-J8,4),NA())),NA()) -> 10 | J8: 9
D9: =IFERROR(IF(INDEX(Kost[],KostVarighedSlutning-KostRækkeStart-J9,1)<>"",INDEX(Kost[],KostVarighedSlutning-KostRækkeStart-J9,1),""),"") -> 2017-05-25 | E9: TO | F9: =IFERROR((IF(INDEX(Kost[],KostVarighedSlutning-KostRækkeStart-J9,1)<>"",INDEX(Kost[],KostVarighedSlutning-KostRækkeStart-J9,7),NA())),NA()) -> 8 | G9: =IFERROR((IF(INDEX(Kost[],KostVarighedSlutning-KostRækkeStart-J9,1)<>"",INDEX(Kost[],KostVarighedSlutning-KostRækkeStart-J9,6),NA())),NA()) -> 3 | H9: =IFERROR((IF(INDEX(Kost[],KostVarighedSlutning-KostRækkeStart-J9,1)<>"",INDEX(Kost[],KostVarighedSlutning-KostRækkeStart-J9,5),NA())),NA()) -> 26 | I9: =IFERROR((IF(INDEX(Kost[],KostVarighedSlutning-KostRækkeStart-J9,1)<>"",INDEX(Kost[],KostVarighedSlutning-KostRækkeStart-J9,4),NA())),NA()) -> 189 | J9: 8
D10: =IFERROR(IF(INDEX(Kost[],KostVarighedSlutning-KostRækkeStart-J10,1)<>"",INDEX(Kost[],KostVarighedSlutning-KostRækkeStart-J10,1),""),"") -> 2017-05-25 | E10: TO | F10: =IFERROR((IF(INDEX(Kost[],KostVarighedSlutning-KostRækkeStart-J10,1)<>"",INDEX(Kost[],KostVarighedSlutning-KostRækkeStart-J10,7),NA())),NA()) -> 21 | G10: =IFERROR((IF(INDEX(Kost[],KostVarighedSlutning-KostRækkeStart-J10,1)<>"",INDEX(Kost[],KostVarighedSlutning-KostRækkeStart-J10,6),NA())),NA()) -> 13.5 | H10: =IFERROR((IF(INDEX(Kost[],KostVarighedSlutning-KostRækkeStart-J10,1)<>"",INDEX(Kost[],KostVarighedSlutning-KostRækkeStart-J10,5),NA())),NA()) -> 62 | I10: =IFERROR((IF(INDEX(Kost[],KostVarighedSlutning-KostRækkeStart-J10,1)<>"",INDEX(Kost[],KostVarighedSlutning-KostRækkeStart-J10,4),NA())),NA()) -> 477 | J10: 7
D11: =IFERROR(IF(INDEX(Kost[],KostVarighedSlutning-KostRækkeStart-J11,1)<>"",INDEX(Kost[],KostVarighedSlutning-KostRækkeStart-J11,1),""),"") -> 2017-05-26 | E11: FR | F11: =IFERROR((IF(INDEX(Kost[],KostVarighedSlutning-KostRækkeStart-J11,1)<>"",INDEX(Kost[],KostVarighedSlutning-KostRækkeStart-J11,7),NA())),NA()) -> 0 | G11: =IFERROR((IF(INDEX(Kost[],KostVarighedSlutning-KostRækkeStart-J11,1)<>"",INDEX(Kost[],KostVarighedSlutning-KostRækkeStart-J11,6),NA())),NA()) -> 0 | H11: =IFERROR((IF(INDEX(Kost[],KostVarighedSlutning-KostRækkeStart-J11,1)<>"",INDEX(Kost[],KostVarighedSlutning-KostRækkeStart-J11,5),NA())),NA()) -> 0 | I11: =IFERROR((IF(INDEX(Kost[],KostVarighedSlutning-KostRækkeStart-J11,1)<>"",INDEX(Kost[],KostVarighedSlutning-KostRækkeStart-J11,4),NA())),NA()) -> 1 | J11: 6
D12: =IFERROR(IF(INDEX(Kost[],KostVarighedSlutning-KostRækkeStart-J12,1)<>"",INDEX(Kost[],KostVarighedSlutning-KostRækkeStart-J12,1),""),"") -> 2017-05-26 | E12: FR | F12: =IFERROR((IF(INDEX(Kost[],KostVarighedSlutning-KostRækkeStart-J12,1)<>"",INDEX(Kost[],KostVarighedSlutning-KostRækkeStart-J12,7),NA())),NA()) -> 1.5 | G12: =IFERROR((IF(INDEX(Kost[],KostVarighedSlutning-KostRækkeStart-J12,1)<>"",INDEX(Kost[],KostVarighedSlutning-KostRækkeStart-J12,6),NA())),NA()) -> 10 | H12: =IFERROR((IF(INDEX(Kost[],KostVarighedSlutning-KostRækkeStart-J12,1)<>"",INDEX(Kost[],KostVarighedSlutning-KostRækkeStart-J12,5),NA())),NA()) -> 48 | I12: =IFERROR((IF(INDEX(Kost[],KostVarighedSlutning-KostRækkeStart-J12,1)<>"",INDEX(Kost[],KostVarighedSlutning-KostRækkeStart-J12,4),NA())),NA()) -> 245 | J12: 5
D13: =IFERROR(IF(INDEX(Kost[],KostVarighedSlutning-KostRækkeStart-J13,1)<>"",INDEX(Kost[],KostVarighedSlutning-KostRækkeStart-J13,1),""),"") -> 2017-05-26 | E13: FR | F13: =IFERROR((IF(INDEX(Kost[],KostVarighedSlutning-KostRækkeStart-J13,1)<>"",INDEX(Kost[],KostVarighedSlutning-KostRækkeStart-J13,7),NA())),NA()) -> 5 | G13: =IFERROR((IF(INDEX(Kost[],KostVarighedSlutning-KostRækkeStart-J13,1)<>"",INDEX(Kost[],KostVarighedSlutning-KostRækkeStart-J13,6),NA())),NA()) -> 43 | H13: =IFERROR((IF(INDEX(Kost[],KostVarighedSlutning-KostRækkeStart-J13,1)<>"",INDEX(Kost[],KostVarighedSlutning-KostRækkeStart-J13,5),NA())),NA()) -> 11 | I13: =IFERROR((IF(INDEX(Kost[],KostVarighedSlutning-KostRækkeStart-J13,1)<>"",INDEX(Kost[],KostVarighedSlutning-KostRækkeStart-J13,4),NA())),NA()) -> 247 | J13: 4
D14: =IFERROR(IF(INDEX(Kost[],KostVarighedSlutning-KostRækkeStart-J14,1)<>"",INDEX(Kost[],KostVarighedSlutning-KostRækkeStart-J14,1),""),"") -> 2017-05-26 | E14: FR | F14: =IFERROR((IF(INDEX(Kost[],KostVarighedSlutning-KostRækkeStart-J14,1)<>"",INDEX(Kost[],KostVarighedSlutning-KostRækkeStart-J14,7),NA())),NA()) -> 22 | G14: =IFERROR((IF(INDEX(Kost[],KostVarighedSlutning-KostRækkeStart-J14,1)<>"",INDEX(Kost[],KostVarighedSlutning-KostRækkeStart-J14,6),NA())),NA()) -> 32 | H14: =IFERROR((IF(INDEX(Kost[],KostVarighedSlutning-KostRækkeStart-J14,1)<>"",INDEX(Kost[],KostVarighedSlutning-KostRækkeStart-J14,5),NA())),NA()) -> 64 | I14: =IFERROR((IF(INDEX(Kost[],KostVarighedSlutning-KostRækkeStart-J14,1)<>"",INDEX(Kost[],KostVarighedSlutning-KostRækkeStart-J14,4),NA())),NA()) -> 456 | J14: 3
D15: =IFERROR(IF(INDEX(Kost[],KostVarighedSlutning-KostRækkeStart-J15,1)<>"",INDEX(Kost[],KostVarighedSlutning-KostRækkeStart-J15,1),""),"") -> 2017-05-27 | E15: LØ | F15: =IFERROR((IF(INDEX(Kost[],KostVarighedSlutning-KostRækkeStart-J15,1)<>"",INDEX(Kost[],KostVarighedSlutning-KostRækkeStart-J15,7),NA())),NA()) -> 10 | G15: =IFERROR((IF(INDEX(Kost[],KostVarighedSlutning-KostRækkeStart-J15,1)<>"",INDEX(Kost[],KostVarighedSlutning-KostRækkeStart-J15,6),NA())),NA()) -> 2 | H15: =IFERROR((IF(INDEX(Kost[],KostVarighedSlutning-KostRækkeStart-J15,1)<>"",INDEX(Kost[],KostVarighedSlutning-KostRækkeStart-J15,5),NA())),NA()) -> 10 | I15: =IFERROR((IF(INDEX(Kost[],KostVarighedSlutning-KostRækkeStart-J15,1)<>"",INDEX(Kost[],KostVarighedSlutning-KostRækkeStart-J15,4),NA())),NA()) -> 10 | J15: 2
D16: =IFERROR(IF(INDEX(Kost[],KostVarighedSlutning-KostRækkeStart-J16,1)<>"",INDEX(Kost[],KostVarighedSlutning-KostRækkeStart-J16,1),""),"") -> 2017-05-27 | E16: LØ | F16: =IFERROR((IF(INDEX(Kost[],KostVarighedSlutning-KostRækkeStart-J16,1)<>"",INDEX(Kost[],KostVarighedSlutning-KostRækkeStart-J16,7),NA())),NA()) -> 5.51 | G16: =IFERROR((IF(INDEX(Kost[],KostVarighedSlutning-KostRækkeStart-J16,1)<>"",INDEX(Kost[],KostVarighedSlutning-KostRækkeStart-J16,6),NA())),NA()) -> 8.81 | H16: =IFERROR((IF(INDEX(Kost[],KostVarighedSlutning-KostRækkeStart-J16,1)<>"",INDEX(Kost[],KostVarighedSlutning-KostRækkeStart-J16,5),NA())),NA()) -> 12.36 | I16: =IFERROR((IF(INDEX(Kost[],KostVarighedSlutning-KostRækkeStart-J16,1)<>"",INDEX(Kost[],KostVarighedSlutning-KostRækkeStart-J16,4),NA())),NA()) -> 135 | J16: 1
D17: =IFERROR(IF(INDEX(Kost[],KostVarighedSlutning-KostRækkeStart-J17,1)<>"",INDEX(Kost[],KostVarighedSlutning-KostRækkeStart-J17,1),""),"") -> 2017-05-27 | E17: LØ | F17: =IFERROR((IF(INDEX(Kost[],KostVarighedSlutning-KostRækkeStart-J17,1)<>"",INDEX(Kost[],KostVarighedSlutning-KostRækkeStart-J17,7),NA())),NA()) -> 15 | G17: =IFERROR((IF(INDEX(Kost[],KostVarighedSlutning-KostRækkeStart-J17,1)<>"",INDEX(Kost[],KostVarighedSlutning-KostRækkeStart-J17,6),NA())),NA()) -> 5.43 | H17: =IFERROR((IF(INDEX(Kost[],KostVarighedSlutning-KostRækkeStart-J17,1)<>"",INDEX(Kost[],KostVarighedSlutning-KostRækkeStart-J17,5),NA())),NA()) -> 7 | I17: =IFERROR((IF(INDEX(Kost[],KostVarighedSlutning-KostRækkeStart-J17,1)<>"",INDEX(Kost[],KostVarighedSlutning-KostRækkeStart-J17,4),NA())),NA()) -> 184 | J17: 0
D18: =IFERROR(IF(INDEX(Kost[],KostVarighedSlutning-KostRækkeStart-J18,1)<>"",INDEX(Kost[],KostVarighedSlutning-KostRækkeStart-J18,1)),"") -> 2017-05-29 | E18: MA | F18: =IFERROR((IF(INDEX(Kost[],KostVarighedSlutning-KostRækkeStart-J18,1)<>"",INDEX(Kost[],KostVarighedSlutning-KostRækkeStart-J18,7),NA())),NA()) -> 21 | G18: =IFERROR((IF(INDEX(Kost[],KostVarighedSlutning-KostRækkeStart-J18,1)<>"",INDEX(Kost[],KostVarighedSlutning-KostRækkeStart-J18,6),NA())),NA()) -> 13.5 | H18: =IFERROR((IF(INDEX(Kost[],KostVarighedSlutning-KostRækkeStart-J18,1)<>"",INDEX(Kost[],KostVarighedSlutning-KostRækkeStart-J18,5),NA())),NA()) -> 62 | I18: =IFERROR((IF(INDEX(Kost[],KostVarighedSlutning-KostRækkeStart-J18,1)<>"",INDEX(Kost[],KostVarighedSlutning-KostRækkeStart-J18,4),NA())),NA()) -> 477 | J18: -1
B20: MOTIONSANALYSE DIAGRAMDATA
B22: Første række | C22: =ROW(Øvelse[[#Headers],[DATO]])+1 -> 4 | D22: DATO | E22: DAG | F22: VARIGHED (MIN) | G22: KALORIER FORBRÆNDT | H22: Num
B23: Sidste motionspost | C23: =MATCH(9.99E+307,Øvelse[DATO])+MotionsRækkeStart-1 -> 20 | D23: =IFERROR(IF(INDEX(Øvelse[],MotionVarighedSlutning-MotionsRækkeStart-H23,1)<>"",INDEX(Øvelse[],MotionVarighedSlutning-MotionsRækkeStart-H23,1)),"") -> 2017-06-13 | E23: =UPPER(TEXT(D23,"DDD")) -> TI | F23: =IFERROR((IF(INDEX(Øvelse[],MotionVarighedSlutning-MotionsRækkeStart-H23,1)<>"",INDEX(Øvelse[],MotionVarighedSlutning-MotionsRækkeStart-H23,2),0)),0) -> 20 | G23: =IFERROR((IF(INDEX(Øvelse[],MotionVarighedSlutning-MotionsRækkeStart-H23,2)<>"",INDEX(Øvelse[],MotionVarighedSlutning-MotionsRækkeStart-H23,3),0)),0) -> 195 | H23: -1
D24: =IFERROR(IF(INDEX(Øvelse[],MotionVarighedSlutning-MotionsRækkeStart-H24,1)<>"",INDEX(Øvelse[],MotionVarighedSlutning-MotionsRækkeStart-H24,1)),"") -> 2017-06-12 | E24: MA | F24: =IFERROR((IF(INDEX(Øvelse[],MotionVarighedSlutning-MotionsRækkeStart-H24,1)<>"",INDEX(Øvelse[],MotionVarighedSlutning-MotionsRækkeStart-H24,2),0)),0) -> 25 | G24: =IFERROR((IF(INDEX(Øvelse[],MotionVarighedSlutning-MotionsRækkeStart-H24,2)<>"",INDEX(Øvelse[],MotionVarighedSlutning-MotionsRækkeStart-H24,3),0)),0) -> 265 | H24: 0
D25: =IFERROR(IF(INDEX(Øvelse[],MotionVarighedSlutning-MotionsRækkeStart-H25,1)<>"",INDEX(Øvelse[],MotionVarighedSlutning-MotionsRækkeStart-H25,1)),"") -> 2017-06-11 | E25: SØ | F25: =IFERROR((IF(INDEX(Øvelse[],MotionVarighedSlutning-MotionsRækkeStart-H25,1)<>"",INDEX(Øvelse[],MotionVarighedSlutning-MotionsRækkeStart-H25,2),0)),0) -> 40 | G25: =IFERROR((IF(INDEX(Øvelse[],MotionVarighedSlutning-MotionsRækkeStart-H25,2)<>"",INDEX(Øvelse[],MotionVarighedSlutning-MotionsRækkeStart-H25,3),0)),0) -> 290 | H25: 1
D26: =IFERROR(IF(INDEX(Øvelse[],MotionVarighedSlutning-MotionsRækkeStart-H26,1)<>"",INDEX(Øvelse[],MotionVarighedSlutning-MotionsRækkeStart-H26,1)),"") -> 2017-06-10 | E26: LØ | F26: =IFERROR((IF(INDEX(Øvelse[],MotionVarighedSlutning-MotionsRækkeStart-H26,1)<>"",INDEX(Øvelse[],MotionVarighedSlutning-MotionsRækkeStart-H26,2),0)),0) -> 35 | G26: =IFERROR((IF(INDEX(Øvelse[],MotionVarighedSlutning-MotionsRækkeStart-H26,2)<>"",INDEX(Øvelse[],MotionVarighedSlutning-MotionsRækkeStart-H26,3),0)),0) -> 320 | H26: 2
D27: =IFERROR(IF(INDEX(Øvelse[],MotionVarighedSlutning-MotionsRækkeStart-H27,1)<>"",INDEX(Øvelse[],MotionVarighedSlutning-MotionsRækkeStart-H27,1)),"") -> 2017-06-09 | E27: FR | F27: =IFERROR((IF(INDEX(Øvelse[],MotionVarighedSlutning-MotionsRækkeStart-H27,1)<>"",INDEX(Øvelse[],MotionVarighedSlutning-MotionsRækkeStart-H27,2),0)),0) -> 45 | G27: =IFERROR((IF(INDEX(Øvelse[],MotionVarighedSlutning-MotionsRækkeStart-H27,2)<>"",INDEX(Øvelse[],MotionVarighedSlutning-MotionsRækkeStart-H27,3),0)),0) -> 350 | H27: 3
D28: =IFERROR(IF(INDEX(Øvelse[],MotionVarighedSlutning-MotionsRækkeStart-H28,1)<>"",INDEX(Øvelse[],MotionVarighedSlutning-MotionsRækkeStart-H28,1)),"") -> 2017-06-08 | E28: TO | F28: =IFERROR((IF(INDEX(Øvelse[],MotionVarighedSlutning-MotionsRækkeStart-H28,1)<>"",INDEX(Øvelse[],MotionVarighedSlutning-MotionsRækkeStart-H28,2),0)),0) -> 20 | G28: =IFERROR((IF(INDEX(Øvelse[],MotionVarighedSlutning-MotionsRækkeStart-H28,2)<>"",INDEX(Øvelse[],MotionVarighedSlutning-MotionsRækkeStart-H28,3),0)),0) -> 295 | H28: 4
D29: =IFERROR(IF(INDEX(Øvelse[],MotionVarighedSlutning-MotionsRækkeStart-H29,1)<>"",INDEX(Øvelse[],MotionVarighedSlutning-MotionsRækkeStart-H29,1)),"") -> 2017-06-07 | E29: ON | F29: =IFERROR((IF(INDEX(Øvelse[],MotionVarighedSlutning-MotionsRækkeStart-H29,1)<>"",INDEX(Øvelse[],MotionVarighedSlutning-MotionsRækkeStart-H29,2),0)),0) -> 40 | G29: =IFERROR((IF(INDEX(Øvelse[],MotionVarighedSlutning-MotionsRækkeStart-H29,2)<>"",INDEX(Øvelse[],MotionVarighedSlutning-MotionsRækkeStart-H29,3),0)),0) -> 270 | H29: 5
D30: =IFERROR(IF(INDEX(Øvelse[],MotionVarighedSlutning-MotionsRækkeStart-H30,1)<>"",INDEX(Øvelse[],MotionVarighedSlutning-MotionsRækkeStart-H30,1)),"") -> 2017-06-06 | E30: TI | F30: =IFERROR((IF(INDEX(Øvelse[],MotionVarighedSlutning-MotionsRækkeStart-H30,1)<>"",INDEX(Øvelse[],MotionVarighedSlutning-MotionsRækkeStart-H30,2),0)),0) -> 45 | G30: =IFERROR((IF(INDEX(Øvelse[],MotionVarighedSlutning-MotionsRækkeStart-H30,2)<>"",INDEX(Øvelse[],MotionVarighedSlutning-MotionsRækkeStart-H30,3),0)),0) -> 325 | H30: 6
D31: =IFERROR(IF(INDEX(Øvelse[],MotionVarighedSlutning-MotionsRækkeStart-H31,1)<>"",INDEX(Øvelse[],MotionVarighedSlutning-MotionsRækkeStart-H31,1)),"") -> 2017-06-05 | E31: MA | F31: =IFERROR((IF(INDEX(Øvelse[],MotionVarighedSlutning-MotionsRækkeStart-H31,1)<>"",INDEX(Øvelse[],MotionVarighedSlutning-MotionsRækkeStart-H31,2),0)),0) -> 40 | G31: =IFERROR((IF(INDEX(Øvelse[],MotionVarighedSlutning-MotionsRækkeStart-H31,2)<>"",INDEX(Øvelse[],MotionVarighedSlutning-MotionsRækkeStart-H31,3),0)),0) -> 175 | H31: 7
D32: =IFERROR(IF(INDEX(Øvelse[],MotionVarighedSlutning-MotionsRækkeStart-H32,1)<>"",INDEX(Øvelse[],MotionVarighedSlutning-MotionsRækkeStart-H32,1)),"") -> 2017-06-04 | E32: SØ | F32: =IFERROR((IF(INDEX(Øvelse[],MotionVarighedSlutning-MotionsRækkeStart-H32,1)<>"",INDEX(Øvelse[],MotionVarighedSlutning-MotionsRækkeStart-H32,2),0)),0) -> 30 | G32: =IFERROR((IF(INDEX(Øvelse[],MotionVarighedSlutning-MotionsRækkeStart-H32,2)<>"",INDEX(Øvelse[],MotionVarighedSlutning-MotionsRækkeStart-H32,3),0)),0) -> 335 | H32: 8
D33: =IFERROR(IF(INDEX(Øvelse[],MotionVarighedSlutning-MotionsRækkeStart-H33,1)<>"",INDEX(Øvelse[],MotionVarighedSlutning-MotionsRækkeStart-H33,1)),"") -> 2017-06-03 | E33: LØ | F33: =IFERROR((IF(INDEX(Øvelse[],MotionVarighedSlutning-MotionsRækkeStart-H33,1)<>"",INDEX(Øvelse[],MotionVarighedSlutning-MotionsRækkeStart-H33,2),0)),0) -> 40 | G33: =IFERROR((IF(INDEX(Øvelse[],MotionVarighedSlutning-MotionsRækkeStart-H33,2)<>"",INDEX(Øvelse[],MotionVarighedSlutning-MotionsRækkeStart-H33,3),0)),0) -> 205 | H33: 9
D34: =IFERROR(IF(INDEX(Øvelse[],MotionVarighedSlutning-MotionsRækkeStart-H34,1)<>"",INDEX(Øvelse[],MotionVarighedSlutning-MotionsRækkeStart-H34,1)),"") -> 2017-06-02 | E34: FR | F34: =IFERROR((IF(INDEX(Øvelse[],MotionVarighedSlutning-MotionsRækkeStart-H34,1)<>"",INDEX(Øvelse[],MotionVarighedSlutning-MotionsRækkeStart-H34,2),0)),0) -> 20 | G34: =IFERROR((IF(INDEX(Øvelse[],MotionVarighedSlutning-MotionsRækkeStart-H34,2)<>"",INDEX(Øvelse[],MotionVarighedSlutning-MotionsRækkeStart-H34,3),0)),0) -> 285 | H34: 10
D35: =IFERROR(IF(INDEX(Øvelse[],MotionVarighedSlutning-MotionsRækkeStart-H35,1)<>"",INDEX(Øvelse[],MotionVarighedSlutning-MotionsRækkeStart-H35,1)),"") -> 2017-06-01 | E35: TO | F35: =IFERROR((IF(INDEX(Øvelse[],MotionVarighedSlutning-MotionsRækkeStart-H35,1)<>"",INDEX(Øvelse[],MotionVarighedSlutning-MotionsRækkeStart-H35,2),0)),0) -> 25 | G35: =IFERROR((IF(INDEX(Øvelse[],MotionVarighedSlutning-MotionsRækkeStart-H35,2)<>"",INDEX(Øvelse[],MotionVarighedSlutning-MotionsRækkeStart-H35,3),0)),0) -> 125 | H35: 11
D36: =IFERROR(IF(INDEX(Øvelse[],MotionVarighedSlutning-MotionsRækkeStart-H36,1)<>"",INDEX(Øvelse[],MotionVarighedSlutning-MotionsRækkeStart-H36,1)),"") -> 2017-05-31 | E36: ON | F36: =IFERROR((IF(INDEX(Øvelse[],MotionVarighedSlutning-MotionsRækkeStart-H36,1)<>"",INDEX(Øvelse[],MotionVarighedSlutning-MotionsRækkeStart-H36,2),0)),0) -> 30 | G36: =IFERROR((IF(INDEX(Øvelse[],MotionVarighedSlutning-MotionsRækkeStart-H36,2)<>"",INDEX(Øvelse[],MotionVarighedSlutning-MotionsRækkeStart-H36,3),0)),0) -> 150 | H36: 12
